[Event "1er Festival international de Cassis 2022"]
[Site "Cassis"]
[Date "2022.05.28"]
[Round "7.2"]
[White "Movsziszian, Karen"]
[Black "Gozzoli, Yannick"]
[Result "1/2-1/2"]
[TimeControl "1 h 30 + 30 s"]
[WhiteElo "2467"]
[BlackElo "2591"]

1. g3 {[%clk 01:30:57]} {[%emt 00:00:03]} e5 {[%clk 01:30:42]} {[%emt
00:00:19]} 2. Bg2 {[%clk 01:30:07]} {[%emt 00:01:20]} d5 {[%clk 01:30:50]}
{[%emt 00:00:21]} 3. d3 {[%clk 01:30:36]} {[%emt 00:00:02]} Nf6 {[%clk
01:31:07]} {[%emt 00:00:13]} 4. Nf3 {[%clk 01:31:02]} {[%emt 00:00:04]} Bd6
{[%clk 01:31:32]} {[%emt 00:00:05]} 5. O-O {[%clk 01:31:27]} {[%emt 00:00:05]}
O-O {[%clk 01:31:56]} {[%emt 00:00:05]} 6. Nc3 {[%clk 01:28:18]} {[%emt
00:03:39]} Re8 {[%clk 01:29:37]} {[%emt 00:02:50]} 7. e4 {[%clk 01:23:07]}
{[%emt 00:05:41]} dxe4 {[%clk 01:29:44]} {[%emt 00:00:23]} 8. dxe4 {[%clk
01:23:35]} {[%emt 00:00:02]} h6 {[%clk 01:24:41]} {[%emt 00:05:32]} 9. h3
{[%clk 01:21:38]} {[%emt 00:02:27]} Be6 {[%clk 01:22:25]} {[%emt 00:02:46]} 10.
Qe2 {[%clk 01:20:56]} {[%emt 00:01:11]} c6 {[%clk 01:17:10]} {[%emt 00:05:46]}
11. Rd1 {[%clk 01:20:47]} {[%emt 00:00:39]} Qc7 {[%clk 01:17:35]} {[%emt
00:00:05]} 12. Nh4 {[%clk 01:20:04]} {[%emt 00:01:12]} Nbd7 {[%clk 01:17:12]}
{[%emt 00:00:53]} 13. Qf3 {[%clk 01:18:55]} {[%emt 00:01:39]} Rad8 {[%clk
01:12:44]} {[%emt 00:04:58]} 14. Nf5 {[%clk 01:17:32]} {[%emt 00:01:53]} Bxf5
{[%clk 01:07:46]} {[%emt 00:05:27]} 15. Qxf5 {[%clk 01:17:44]} {[%emt
00:00:18]} Be7 {[%clk 01:03:57]} {[%emt 00:04:19]} 16. h4 {[%clk 00:58:05]}
{[%emt 00:20:10]} b5 {[%clk 00:55:47]} {[%emt 00:08:40]} 17. Qf3 {[%clk
00:47:50]} {[%emt 00:10:45]} Nc5 {[%clk 00:49:08]} {[%emt 00:07:09]} 18. Be3
{[%clk 00:48:19]} {[%emt 00:00:02]} Ne6 {[%clk 00:47:42]} {[%emt 00:01:56]} 19.
Rxd8 {[%clk 00:48:08]} {[%emt 00:00:42]} Rxd8 {[%clk 00:48:01]} {[%emt
00:00:11]} 20. Rd1 {[%clk 00:48:33]} {[%emt 00:00:04]} Bc5 {[%clk 00:40:26]}
{[%emt 00:08:06]} 21. Rxd8+ {[%clk 00:42:40]} {[%emt 00:06:23]} Qxd8 {[%clk
00:40:11]} {[%emt 00:00:44]} 22. Bxc5 {[%clk 00:43:09]} {[%emt 00:00:01]} Nxc5
{[%clk 00:40:35]} {[%emt 00:00:06]} 23. Qe3 {[%clk 00:43:04]} {[%emt 00:00:34]}
Qd6 {[%clk 00:39:23]} {[%emt 00:01:42]} 24. Bf3 {[%clk 00:41:11]} {[%emt
00:02:22]} a5 {[%clk 00:35:25]} {[%emt 00:04:29]} 25. Kg2 {[%clk 00:39:26]}
{[%emt 00:02:16]} h5 {[%clk 00:34:11]} {[%emt 00:01:43]} 26. a3 {[%clk
00:37:57]} {[%emt 00:02:00]} g6 {[%clk 00:33:25]} {[%emt 00:01:16]} 27. Nb1
{[%clk 00:35:04]} {[%emt 00:03:23]} Ne6 {[%clk 00:28:56]} {[%emt 00:04:59]} 28.
Nd2 {[%clk 00:29:25]} {[%emt 00:06:09]} Nd7 {[%clk 00:27:59]} {[%emt 00:01:27]}
29. c3 {[%clk 00:28:07]} {[%emt 00:01:48]} a4 {[%clk 00:26:36]} {[%emt
00:01:53]} 30. Bd1 {[%clk 00:27:14]} {[%emt 00:01:22]} Kg7 {[%clk 00:22:44]}
{[%emt 00:04:22]} 31. Bc2 {[%clk 00:27:19]} {[%emt 00:00:25]} Nb6 {[%clk
00:18:59]} {[%emt 00:04:15]} 32. Qd3 {[%clk 00:22:44]} {[%emt 00:05:04]} Qxd3
{[%clk 00:16:08]} {[%emt 00:03:22]} 33. Bxd3 {[%clk 00:23:13]} {[%emt
00:00:02]} Nc5 {[%clk 00:16:32]} {[%emt 00:00:06]} 34. Be2 {[%clk 00:22:22]}
{[%emt 00:01:21]} Nc8 {[%clk 00:14:38]} {[%emt 00:02:24]} 35. c4 {[%clk
00:19:27]} {[%emt 00:03:25]} Nd6 {[%clk 00:14:49]} {[%emt 00:00:18]} 36. cxb5
{[%clk 00:19:44]} {[%emt 00:00:14]} cxb5 {[%clk 00:15:15]} {[%emt 00:00:04]} 37.
Kf3 {[%clk 00:16:51]} {[%emt 00:03:22]} f5 {[%clk 00:10:27]} {[%emt 00:05:18]}
38. exf5 {[%clk 00:17:17]} {[%emt 00:00:05]} gxf5 {[%clk 00:10:53]} {[%emt
00:00:04]} 39. Kg2 {[%clk 00:15:04]} {[%emt 00:02:43]} e4 {[%clk 00:08:35]}
{[%emt 00:02:48]} 40. Bxh5 {[%clk 00:13:43]} {[%emt 00:01:52]} Nd3 {[%clk
00:09:01]} {[%emt 00:00:04]} 41. b3 {[%clk 00:13:54]} {[%emt 00:00:19]} b4
{[%clk 00:09:09]} {[%emt 00:00:22]} 42. bxa4 {[%clk 00:13:34]} {[%emt
00:00:50]} bxa3 {[%clk 00:09:35]} {[%emt 00:00:03]} 43. Nb3 {[%clk 00:13:57]}
{[%emt 00:00:07]} a2 {[%clk 00:08:54]} {[%emt 00:01:12]} 44. Na1 {[%clk
00:14:25]} {[%emt 00:00:01]} Nc4 {[%clk 00:05:45]} {[%emt 00:03:39]} 45. Bd1
{[%clk 00:13:17]} {[%emt 00:01:39]} Nc5 {[%clk 00:05:08]} {[%emt 00:01:07]} 46.
Bb3 {[%clk 00:12:49]} {[%emt 00:00:56]} Nxb3 {[%clk 00:04:13]} {[%emt
00:01:26]} 47. Nxb3 {[%clk 00:13:18]} {[%emt 00:00:01]} Kh6 {[%clk 00:04:38]}
{[%emt 00:00:04]} 48. Na1 {[%clk 00:13:07]} {[%emt 00:00:41]} Kh5 {[%clk
00:04:47]} {[%emt 00:00:22]} 49. f3 {[%clk 00:12:45]} {[%emt 00:00:52]} e3
{[%clk 00:04:50]} {[%emt 00:00:27]} 50. Kf1 {[%clk 00:09:04]} {[%emt 00:04:09]}
f4 {[%clk 00:04:27]} {[%emt 00:00:55]} 51. gxf4 {[%clk 00:09:31]} {[%emt
00:00:03]} Kxh4 {[%clk 00:04:53]} {[%emt 00:00:05]} 52. Ke2 {[%clk 00:09:54]}
{[%emt 00:00:07]} Kh5 {[%clk 00:05:18]} {[%emt 00:00:04]} 53. a5 {[%clk
00:10:13]} {[%emt 00:00:11]} Nxa5 {[%clk 00:05:44]} {[%emt 00:00:04]} 54. Kxe3
{[%clk 00:10:42]} Kg6 {[%clk 00:06:08]} {[%emt 00:00:05]} 55. Ke4 {[%emt
00:00:21]} 1/2-1/2

[Event "1er Festival international de Cassis 2022"]
[Site "Cassis"]
[Date "2022.05.28"]
[Round "7.3"]
[White "Rasolo, Loick"]
[Black "Yankelevich, Lev"]
[Result "0-1"]
[TimeControl "1 h 30 + 30 s"]
[WhiteElo "1997"]
[BlackElo "2473"]

1. e4 {[%clk 01:30:50]} {[%emt 00:00:09]} Nf6 {[%clk 01:30:54]} {[%emt
00:00:06]} 2. e5 {[%clk 01:30:43]} {[%emt 00:00:38]} Nd5 {[%clk 01:31:20]}
{[%emt 00:00:04]} 3. d4 {[%clk 01:30:56]} {[%emt 00:00:17]} d6 {[%clk
01:31:47]} {[%emt 00:00:04]} 4. c4 {[%clk 01:30:29]} {[%emt 00:00:55]} Nb6
{[%clk 01:32:14]} {[%emt 00:00:03]} 5. exd6 {[%clk 01:29:37]} {[%emt 00:01:22]}
exd6 {[%clk 01:32:41]} {[%emt 00:00:04]} 6. Nc3 {[%clk 01:29:07]} {[%emt
00:00:59]} Be7 {[%clk 01:33:08]} {[%emt 00:00:04]} 7. Be3 {[%clk 01:29:01]}
{[%emt 00:00:35]} O-O {[%clk 01:33:12]} {[%emt 00:00:26]} 8. Bd3 {[%clk
01:29:02]} {[%emt 00:00:29]} Nc6 {[%clk 01:33:17]} {[%emt 00:00:26]} 9. Nge2
{[%clk 01:15:47]} {[%emt 00:13:44]} Nb4 {[%clk 01:33:01]} {[%emt 00:00:46]} 10.
O-O {[%clk 01:15:48]} {[%emt 00:00:29]} Nxd3 {[%clk 01:31:32]} {[%emt
00:01:59]} 11. Qxd3 {[%clk 01:14:38]} {[%emt 00:01:40]} c6 {[%clk 01:30:31]}
{[%emt 00:01:32]} 12. d5 {[%clk 01:13:51]} {[%emt 00:01:15]} c5 {[%clk
01:30:46]} {[%emt 00:00:16]} 13. Rfe1 {[%clk 01:11:22]} {[%emt 00:02:59]} Bf6
{[%clk 01:30:08]} {[%emt 00:01:09]} 14. Ng3 {[%clk 01:10:22]} {[%emt 00:01:29]}
Nd7 {[%clk 01:30:07]} {[%emt 00:00:31]} 15. Nh5 {[%clk 01:02:50]} {[%emt
00:08:01]} Ne5 {[%clk 01:29:49]} {[%emt 00:00:49]} 16. Qe4 {[%clk 00:55:02]}
{[%emt 00:08:18]} Ng6 {[%clk 01:27:35]} {[%emt 00:02:44]} 17. Nxf6+ {[%clk
00:53:18]} {[%emt 00:02:13]} Qxf6 {[%clk 01:28:03]} {[%emt 00:00:03]} 18. Qc2
{[%clk 00:44:11]} {[%emt 00:09:37]} Nh4 {[%clk 01:24:37]} {[%emt 00:03:56]} 19.
Ne4 {[%clk 00:35:38]} {[%emt 00:09:03]} Qg6 {[%clk 01:24:59]} {[%emt 00:00:08]}
20. Bg5 {[%clk 00:36:01]} {[%emt 00:00:06]} Nxg2 {[%clk 01:24:22]} {[%emt
00:01:07]} 21. Kxg2 {[%clk 00:36:16]} {[%emt 00:00:16]} Bf5 {[%clk 01:21:26]}
{[%emt 00:03:26]} 22. f3 {[%clk 00:33:22]} {[%emt 00:03:24]} f6 {[%clk
01:14:00]} {[%emt 00:07:55]} 23. Qf2 {[%clk 00:31:14]} {[%emt 00:02:38]} fxg5
{[%clk 01:11:49]} {[%emt 00:02:41]} 24. Qg3 {[%clk 00:30:18]} {[%emt 00:01:26]}
g4 {[%clk 01:12:11]} {[%emt 00:00:09]} 25. Nxd6 {[%clk 00:28:23]} {[%emt
00:02:24]} gxf3+ {[%clk 01:12:37]} {[%emt 00:00:05]} 26. Kf2 {[%clk 00:28:45]}
{[%emt 00:00:08]} Qf6 {[%clk 01:12:19]} {[%emt 00:00:47]} 27. Qe5 {[%clk
00:22:42]} {[%emt 00:06:33]} Qh4+ {[%clk 01:12:27]} {[%emt 00:00:22]} 28. Ke3
{[%clk 00:21:14]} {[%emt 00:01:58]} f2 {[%clk 01:12:07]} {[%emt 00:00:50]} 29.
Rf1 {[%clk 00:19:00]} {[%emt 00:02:45]} Bh3 {[%clk 01:12:19]} {[%emt 00:00:18]}
0-1

[Event "1er Festival international de Cassis 2022"]
[Site "Cassis"]
[Date "2022.05.28"]
[Round "7.4"]
[White "Degraeve, Remy"]
[Black "Dudognon, Thibault"]
[Result "1-0"]
[TimeControl "1 h 30 + 30 s"]
[WhiteElo "2383"]
[BlackElo "2305"]

1. e4 {[%clk 01:29:34]} {[%emt 00:01:26]} c5 {[%clk 01:29:03]} {[%emt
00:01:57]} 2. Nc3 {[%clk 01:29:43]} {[%emt 00:00:21]} d6 {[%clk 01:29:29]}
{[%emt 00:00:04]} 3. d4 {[%clk 01:30:07]} {[%emt 00:00:06]} cxd4 {[%clk
01:29:50]} {[%emt 00:00:09]} 4. Qxd4 {[%clk 01:30:33]} {[%emt 00:00:04]} Nc6
{[%clk 01:30:06]} {[%emt 00:00:14]} 5. Qd2 {[%clk 01:30:58]} {[%emt 00:00:05]}
g6 {[%clk 01:30:34]} {[%emt 00:00:03]} 6. b3 {[%clk 01:31:24]} {[%emt
00:00:05]} Bh6 {[%clk 01:31:00]} {[%emt 00:00:03]} 7. f4 {[%clk 01:31:49]}
{[%emt 00:00:04]} Nf6 {[%clk 01:31:10]} {[%emt 00:00:21]} 8. Bb2 {[%clk
01:32:16]} {[%emt 00:00:03]} O-O {[%clk 01:31:21]} {[%emt 00:00:18]} 9. O-O-O
{[%clk 01:32:43]} {[%emt 00:00:03]} e5 {[%clk 01:31:48]} {[%emt 00:00:03]} 10.
g3 {[%clk 01:33:08]} {[%emt 00:00:04]} Re8 {[%clk 01:31:29]} {[%emt 00:00:50]}
11. Bg2 {[%clk 01:32:24]} {[%emt 00:01:15]} Bg4 {[%clk 01:28:39]} {[%emt
00:03:19]} 12. Nge2 {[%clk 01:30:56]} {[%emt 00:01:58]} Nd4 {[%clk 01:28:01]}
{[%emt 00:01:09]} 13. Nxd4 {[%clk 01:31:12]} {[%emt 00:00:13]} exd4 {[%clk
01:22:19]} {[%emt 00:06:11]} 14. Qxd4 {[%clk 01:31:08]} {[%emt 00:00:35]} Bg7
{[%clk 01:21:37]} {[%emt 00:01:12]} 15. Nb5 {[%clk 01:26:05]} {[%emt 00:05:34]}
Bxd1 {[%clk 01:19:50]} {[%emt 00:02:16]} 16. Rxd1 {[%clk 01:25:39]} {[%emt
00:00:56]} Nh5 {[%clk 01:03:56]} {[%emt 00:16:24]} 17. Qd3 {[%clk 01:25:13]}
{[%emt 00:00:56]} Qa5 {[%clk 00:52:50]} {[%emt 00:11:36]} 18. Kb1 {[%clk
01:19:34]} {[%emt 00:06:09]} Red8 {[%clk 00:45:28]} {[%emt 00:07:52]} 19. Nxd6
{[%clk 01:18:48]} {[%emt 00:01:17]} Bxb2 {[%clk 00:38:22]} {[%emt 00:07:36]} 20.
Kxb2 {[%clk 01:18:43]} {[%emt 00:00:35]} Qc7 {[%clk 00:38:38]} {[%emt
00:00:13]} 21. e5 {[%clk 01:18:09]} {[%emt 00:01:04]} Ng7 {[%clk 00:39:00]}
{[%emt 00:00:08]} 22. Bd5 {[%clk 01:11:31]} {[%emt 00:07:08]} Ne8 {[%clk
00:34:06]} {[%emt 00:05:24]} 23. Nxf7 {[%clk 01:05:22]} {[%emt 00:06:39]} Rxd5
{[%clk 00:33:30]} {[%emt 00:01:06]} 24. Nh6+ {[%clk 01:05:49]} {[%emt
00:00:03]} Kg7 {[%clk 00:33:55]} {[%emt 00:00:05]} 25. Qxd5 {[%clk 01:06:17]}
{[%emt 00:00:02]} Kxh6 {[%clk 00:34:13]} {[%emt 00:00:12]} 26. f5 {[%clk
01:06:23]} {[%emt 00:00:25]} Rc8 {[%clk 00:32:31]} {[%emt 00:02:12]} 27. c4
{[%clk 01:06:48]} {[%emt 00:00:04]} b5 {[%clk 00:28:44]} {[%emt 00:04:17]} 28.
f6 {[%clk 00:58:38]} {[%emt 00:08:40]} bxc4 {[%clk 00:28:00]} {[%emt 00:01:13]}
29. Qe4 {[%clk 00:59:03]} {[%emt 00:00:05]} g5 {[%clk 00:21:17]} {[%emt
00:07:14]} 30. h4 {[%clk 00:59:03]} {[%emt 00:00:30]} c3+ {[%clk 00:20:10]}
{[%emt 00:01:37]} 31. Kc2 {[%clk 00:59:30]} {[%emt 00:00:03]} Qc5 {[%clk
00:14:45]} {[%emt 00:05:54]} 32. Qf5 {[%clk 00:57:53]} {[%emt 00:02:07]} gxh4
{[%clk 00:13:56]} {[%emt 00:01:20]} 33. Rh1 {[%clk 00:58:20]} {[%emt 00:00:04]}
1-0

[Event "1er Festival international de Cassis 2022"]
[Site "Cassis"]
[Date "2022.05.28"]
[Round "7.5"]
[White "Lever, Erwan"]
[Black "Kunin, Vitaly"]
[Result "0-1"]
[TimeControl "1 h 30 + 30 s"]
[WhiteElo "2209"]
[BlackElo "2539"]

1. d4 {[%clk 01:28:52]} {[%emt 00:02:07]} Nf6 {[%clk 01:30:22]} {[%emt
00:00:38]} 2. c4 {[%clk 01:29:18]} {[%emt 00:00:05]} e6 {[%clk 01:30:36]}
{[%emt 00:00:15]} 3. g3 {[%clk 01:29:45]} {[%emt 00:00:05]} Bb4+ {[%clk
01:25:25]} {[%emt 00:05:40]} 4. Bd2 {[%clk 01:29:11]} {[%emt 00:01:04]} a5
{[%clk 01:25:42]} {[%emt 00:00:13]} 5. Bg2 {[%clk 01:29:35]} {[%emt 00:00:06]}
c5 {[%clk 01:26:03]} {[%emt 00:00:08]} 6. d5 {[%clk 01:27:44]} {[%emt
00:02:22]} exd5 {[%clk 01:25:44]} {[%emt 00:00:48]} 7. cxd5 {[%clk 01:28:10]}
{[%emt 00:00:06]} O-O {[%clk 01:25:18]} {[%emt 00:00:55]} 8. Nh3 {[%clk
01:25:47]} {[%emt 00:02:53]} d6 {[%clk 01:25:15]} {[%emt 00:00:32]} 9. O-O
{[%clk 01:26:00]} {[%emt 00:00:17]} Bxd2 {[%clk 01:23:30]} {[%emt 00:02:15]} 10.
Nxd2 {[%clk 01:19:24]} {[%emt 00:07:07]} b5 {[%clk 01:23:15]} {[%emt 00:00:45]}
11. a4 {[%clk 01:18:52]} {[%emt 00:01:01]} Ba6 {[%clk 01:22:10]} {[%emt
00:01:35]} 12. Re1 {[%clk 01:19:17]} {[%emt 00:00:06]} Re8 {[%clk 01:21:39]}
{[%emt 00:01:01]} 13. axb5 {[%clk 01:18:16]} {[%emt 00:01:32]} Bxb5 {[%clk
01:22:00]} {[%emt 00:00:08]} 14. e4 {[%clk 01:18:33]} {[%emt 00:00:13]} Na6
{[%clk 01:21:58]} {[%emt 00:00:32]} 15. f4 {[%clk 01:10:46]} {[%emt 00:08:18]}
Nb4 {[%clk 01:22:06]} {[%emt 00:00:21]} 16. Nf2 {[%clk 01:11:11]} {[%emt
00:00:05]} Qb6 {[%clk 01:11:30]} {[%emt 00:11:06]} 17. b3 {[%clk 01:07:54]}
{[%emt 00:03:48]} Nfxd5 {[%clk 01:09:40]} {[%emt 00:02:20]} 18. exd5 {[%clk
01:07:22]} {[%emt 00:01:02]} Rxe1+ {[%clk 01:10:02]} {[%emt 00:00:08]} 19. Qxe1
{[%clk 01:07:48]} {[%emt 00:00:03]} Nc2 {[%clk 01:10:22]} {[%emt 00:00:10]} 20.
Qc1 {[%clk 01:06:48]} {[%emt 00:01:31]} Nxa1 {[%clk 01:10:46]} {[%emt
00:00:07]} 21. Qxa1 {[%clk 01:07:12]} {[%emt 00:00:06]} a4 {[%clk 01:11:09]}
{[%emt 00:00:06]} 22. bxa4 {[%clk 00:54:21]} {[%emt 00:13:21]} Rxa4 {[%clk
01:11:05]} {[%emt 00:00:34]} 23. Qc3 {[%clk 00:48:58]} {[%emt 00:05:53]} c4
{[%clk 01:07:17]} {[%emt 00:04:19]} 24. f5 {[%clk 00:44:58]} {[%emt 00:04:30]}
Qa7 {[%clk 01:04:40]} {[%emt 00:03:05]} 25. Bf1 {[%clk 00:43:35]} {[%emt
00:01:54]} h6 {[%clk 01:03:08]} {[%emt 00:02:02]} 26. Nde4 {[%clk 00:41:33]}
{[%emt 00:02:31]} Ra3 {[%clk 00:56:21]} {[%emt 00:07:16]} 27. Qb4 {[%clk
00:38:42]} {[%emt 00:03:22]} Rb3 {[%clk 00:56:42]} {[%emt 00:00:09]} 28. Qxd6
{[%clk 00:39:00]} {[%emt 00:00:12]} c3 {[%clk 00:56:47]} {[%emt 00:00:24]} 29.
f6 {[%clk 00:38:16]} {[%emt 00:01:15]} Qa1 {[%clk 00:52:25]} {[%emt 00:04:52]}
0-1

[Event "1er Festival international de Cassis 2022"]
[Site "Cassis"]
[Date "2022.05.28"]
[Round "7.6"]
[White "Baroyan, Davit"]
[Black "Flear, Glenn C"]
[Result "1/2-1/2"]
[TimeControl "1 h 30 + 30 s"]
[WhiteElo "2148"]
[BlackElo "2418"]

1. d4 {[%clk 01:30:56]} {[%emt 00:00:04]} Nf6 {[%clk 01:30:38]} {[%emt
00:00:22]} 2. c4 {[%clk 01:31:15]} {[%emt 00:00:11]} g6 {[%clk 01:30:45]}
{[%emt 00:00:22]} 3. Nc3 {[%clk 01:31:35]} {[%emt 00:00:11]} d5 {[%clk
01:31:01]} {[%emt 00:00:14]} 4. cxd5 {[%clk 01:31:53]} {[%emt 00:00:12]} Nxd5
{[%clk 01:31:23]} {[%emt 00:00:08]} 5. e4 {[%clk 01:32:20]} {[%emt 00:00:04]}
Nxc3 {[%clk 01:31:37]} {[%emt 00:00:15]} 6. bxc3 {[%clk 01:32:43]} {[%emt
00:00:07]} Bg7 {[%clk 01:32:01]} {[%emt 00:00:05]} 7. Nf3 {[%clk 01:33:09]}
{[%emt 00:00:06]} c5 {[%clk 01:32:12]} {[%emt 00:00:18]} 8. Bb5+ {[%clk
01:33:32]} {[%emt 00:00:07]} Bd7 {[%clk 01:31:33]} {[%emt 00:01:09]} 9. Be2
{[%clk 01:33:31]} {[%emt 00:00:31]} Qa5 {[%clk 01:30:50]} {[%emt 00:01:13]} 10.
Bd2 {[%clk 01:31:17]} {[%emt 00:02:44]} O-O {[%clk 01:29:55]} {[%emt 00:01:25]}
11. O-O {[%clk 01:28:43]} {[%emt 00:03:04]} Qa4 {[%clk 01:28:33]} {[%emt
00:01:53]} 12. Bg5 {[%clk 01:23:03]} {[%emt 00:06:10]} cxd4 {[%clk 01:17:13]}
{[%emt 00:11:50]} 13. cxd4 {[%clk 01:22:20]} {[%emt 00:01:12]} h6 {[%clk
01:15:12]} {[%emt 00:02:31]} 14. Be3 {[%clk 01:14:49]} {[%emt 00:08:01]} Rc8
{[%clk 01:09:24]} {[%emt 00:06:18]} 15. Qd2 {[%clk 01:10:45]} {[%emt 00:04:34]}
Rc2 {[%clk 00:57:48]} {[%emt 00:12:06]} 16. Bd1 {[%clk 01:09:18]} {[%emt
00:01:57]} Rxd2 {[%clk 00:58:11]} {[%emt 00:00:06]} 17. Bxa4 {[%clk 01:09:41]}
{[%emt 00:00:08]} Rb2 {[%clk 00:53:50]} {[%emt 00:04:51]} 18. Bb3 {[%clk
00:56:07]} {[%emt 00:14:04]} Nc6 {[%clk 00:53:35]} {[%emt 00:00:44]} 19. Rac1
{[%clk 00:38:26]} {[%emt 00:18:12]} Rc8 {[%clk 00:40:19]} {[%emt 00:13:46]} 20.
d5 {[%clk 00:30:00]} {[%emt 00:08:56]} Na5 {[%clk 00:40:29]} {[%emt 00:00:20]}
21. Rxc8+ {[%clk 00:30:19]} {[%emt 00:00:12]} Bxc8 {[%clk 00:40:49]} {[%emt
00:00:10]} 22. Rc1 {[%clk 00:30:31]} {[%emt 00:00:17]} Bd7 {[%clk 00:41:03]}
{[%emt 00:00:16]} 23. Nd2 {[%clk 00:28:13]} {[%emt 00:02:48]} Nxb3 {[%clk
00:39:17]} {[%emt 00:02:16]} 24. axb3 {[%clk 00:27:40]} {[%emt 00:01:03]} a5
{[%clk 00:24:41]} {[%emt 00:15:07]} 25. Rc7 {[%clk 00:12:38]} {[%emt 00:15:32]}
a4 {[%clk 00:24:20]} {[%emt 00:00:50]} 26. bxa4 {[%clk 00:12:49]} {[%emt
00:00:19]} Bxa4 {[%clk 00:24:37]} {[%emt 00:00:13]} 27. f3 {[%clk 00:11:13]}
{[%emt 00:02:06]} Bf6 {[%clk 00:19:56]} {[%emt 00:05:11]} 28. e5 {[%clk
00:04:18]} {[%emt 00:07:26]} Bxe5 {[%clk 00:19:42]} {[%emt 00:00:44]} 29. Rxe7
{[%clk 00:04:44]} {[%emt 00:00:05]} Bd6 {[%clk 00:15:57]} {[%emt 00:04:14]} 30.
Re4 {[%clk 00:05:10]} {[%emt 00:00:05]} Bb5 {[%clk 00:15:12]} {[%emt 00:01:15]}
31. Nc4 {[%clk 00:04:20]} {[%emt 00:01:20]} Bxc4 {[%clk 00:10:20]} {[%emt
00:05:22]} 32. Rxc4 {[%clk 00:04:48]} {[%emt 00:00:02]} Rb1+ {[%clk 00:09:44]}
{[%emt 00:01:06]} 33. Kf2 {[%clk 00:02:34]} {[%emt 00:02:45]} Bxh2 {[%clk
00:09:15]} {[%emt 00:00:59]} 34. Bxh6 {[%clk 00:02:26]} {[%emt 00:00:38]} Rd1
{[%clk 00:04:02]} {[%emt 00:05:43]} 35. Rb4 {[%clk 00:02:04]} {[%emt 00:00:51]}
Rxd5 {[%clk 00:03:32]} {[%emt 00:01:00]} 36. Rxb7 {[%clk 00:02:33]} {[%emt
00:00:02]} 1/2-1/2

[Event "1er Festival international de Cassis 2022"]
[Site "Cassis"]
[Date "2022.05.28"]
[Round "7.7"]
[White "Jober, Robert"]
[Black "Bacrot, Alexandre"]
[Result "0-1"]
[TimeControl "1 h 30 + 30 s"]
[WhiteElo "2073"]
[BlackElo "2341"]

1. d4 {[%clk 01:27:53]} {[%emt 00:03:07]} d5 {[%clk 01:30:56]} {[%emt
00:00:04]} 2. Nc3 {[%clk 01:28:07]} {[%emt 00:00:15]} Nf6 {[%clk 01:31:21]}
{[%emt 00:00:05]} 3. Bf4 {[%clk 01:28:33]} {[%emt 00:00:05]} a6 {[%clk
01:31:47]} {[%emt 00:00:04]} 4. e3 {[%clk 01:28:54]} {[%emt 00:00:10]} b5
{[%clk 01:32:10]} {[%emt 00:00:06]} 5. h4 {[%clk 01:28:50]} {[%emt 00:00:34]}
h5 {[%clk 01:31:06]} {[%emt 00:01:34]} 6. Nf3 {[%clk 01:26:32]} {[%emt
00:02:48]} Bb7 {[%clk 01:31:09]} {[%emt 00:00:28]} 7. Ne5 {[%clk 01:06:58]}
{[%emt 00:20:04]} Nbd7 {[%clk 01:31:10]} {[%emt 00:00:29]} 8. Be2 {[%clk
01:06:59]} {[%emt 00:00:28]} e6 {[%clk 01:25:06]} {[%emt 00:06:35]} 9. Nxd7
{[%clk 01:02:02]} {[%emt 00:05:26]} Qxd7 {[%clk 01:25:31]} {[%emt 00:00:05]} 10.
Be5 {[%clk 01:02:10]} {[%emt 00:00:23]} Be7 {[%clk 01:25:56]} {[%emt 00:00:05]}
11. g3 {[%clk 00:59:01]} {[%emt 00:03:39]} g6 {[%clk 01:25:29]} {[%emt
00:00:57]} 12. a3 {[%clk 00:59:13]} {[%emt 00:00:18]} Rg8 {[%clk 01:24:07]}
{[%emt 00:01:52]} 13. Bxf6 {[%clk 00:48:23]} {[%emt 00:11:20]} Bxf6 {[%clk
01:24:32]} {[%emt 00:00:05]} 14. f4 {[%clk 00:47:43]} {[%emt 00:01:10]} c5
{[%clk 01:24:20]} {[%emt 00:00:41]} 15. b4 {[%clk 00:48:05]} {[%emt 00:00:08]}
cxd4 {[%clk 01:15:57]} {[%emt 00:08:53]} 16. exd4 {[%clk 00:48:29]} {[%emt
00:00:05]} Ke7 {[%clk 01:15:41]} {[%emt 00:00:47]} 17. Bf1 {[%clk 00:41:42]}
{[%emt 00:07:18]} Rgc8 {[%clk 01:15:22]} {[%emt 00:00:48]} 18. Ne2 {[%clk
00:42:00]} {[%emt 00:00:11]} Rc4 {[%clk 01:14:14]} {[%emt 00:01:38]} 19. c3
{[%clk 00:42:13]} {[%emt 00:00:17]} Qc7 {[%clk 01:12:46]} {[%emt 00:01:58]} 20.
Rc1 {[%clk 00:27:43]} {[%emt 00:15:00]} a5 {[%clk 01:13:11]} {[%emt 00:00:05]}
21. Qb3 {[%clk 00:28:05]} {[%emt 00:00:09]} axb4 {[%clk 01:12:34]} {[%emt
00:01:07]} 22. axb4 {[%clk 00:28:26]} {[%emt 00:00:08]} Bxd4 {[%clk 01:12:45]}
{[%emt 00:00:20]} 23. Nxd4 {[%clk 00:21:53]} {[%emt 00:07:03]} Rxd4 {[%clk
01:13:13]} {[%emt 00:00:02]} 24. Bxb5 {[%clk 00:16:07]} {[%emt 00:06:16]} Re4+
{[%clk 01:13:39]} {[%emt 00:00:04]} 25. Be2 {[%clk 00:07:42]} {[%emt 00:08:55]}
Qb6 {[%clk 01:12:03]} {[%emt 00:02:06]} 26. Kd1 {[%clk 00:05:21]} {[%emt
00:02:51]} Qe3 {[%clk 01:12:17]} {[%emt 00:00:16]} 27. Re1 {[%clk 00:05:34]}
{[%emt 00:00:17]} Rd4+ {[%clk 01:12:43]} {[%emt 00:00:04]} 0-1